bitfinex/quotes_ETHUSD_20240722
["timestamp","ask_amount","ask_price","bid_price","bid_amount"]
[1721686782089,0.60362582,3449.6,3449.3,2.89908]
[1721686782287,0.60362582,3449.6,3449.2,2.89916]
[1721686782608,0.60362582,3449.6,3449.3,0.55]
[1721686783318,0.60362582,3449.6,3449.0,5.41133]
[1721686783477,0.60362582,3449.6,3449.1,0.55]
[1721686783881,0.60362582,3449.6,3449.1,1.5064834]
[1721686784081,0.60362582,3449.6,3449.5,2.89897]
[1721686784328,0.60362582,3449.9,3449.5,3.44897]
[1721686784493,0.60362582,3449.9,3449.7,2.89875]
[1721686784687,0.60362582,3450.0,3449.9,2.89863]
[1721686785322,0.60362582,3450.1,3449.9,2.89863]
[1721686785840,0.60362582,3450.1,3450.0,5.7971]
[1721686786126,0.60362582,3450.4,3450.2,2.89832]
[1721686786349,0.60362582,3450.6,3450.2,5.41032]
[1721686786688,0.60362582,3450.5,3450.2,5.41032]
[1721686786935,0.90532099,3450.7,3450.2,5.41032]
[1721686786936,0.60362582,3450.6,3450.2,5.41032]
[1721686787429,0.60362582,3450.7,3450.2,5.41032]
[1721686787588,0.60362582,3450.6,3450.2,5.41032]
[1721686787784,0.60362582,3450.6,3450.2,6.3792987]
[1721686788241,0.60362582,3450.7,3450.2,6.3792987]
[1721686788403,0.60362582,3450.6,3450.2,6.3792987]
[1721686788730,0.60362582,3450.8,3450.3,3.44829]
[1721686788935,0.60362582,3450.8,3450.4,2.8982]
[1721686789238,0.60362582,3450.8,3450.3,4.43097887]
[1721686789587,0.60362582,3450.8,3450.4,2.89821]
[1721686790225,0.90532099,3451.0,3450.4,2.89821]
[1721686790226,0.60362582,3450.9,3450.4,2.89821]
[1721686790538,0.60362582,3451.1,3450.7,2.89788]
[1721686790836,0.60362582,3451.2,3450.9,2.89778]
[1721686791047,0.60362582,3451.3,3450.7,3.44470346]
[1721686791259,0.60362582,3451.3,3450.8,3.44786]
[1721686791398,0.60362582,3451.4,3450.8,0.55]
[1721686791756,0.60362582,3451.3,3450.6,2.512]
[1721686791912,0.60362582,3451.3,3450.7,0.55]
[1721686792246,0.60362582,3451.2,3450.6,2.512]
[1721686792897,0.60362582,3451.1,3450.3,3.88099887]
[1721686793211,0.60362582,3451.2,3450.4,4.58619776]
[1721686793414,0.60362582,3451.2,3450.4,7.48435776]
[1721686793740,0.60362582,3451.2,3450.4,7.48434776]
[1721686793895,0.60362582,3451.2,3450.5,2.89812]
[1721686794102,0.60362582,3451.3,3450.6,0.55]
[1721686794311,0.91018271,3451.3,3450.6,0.55]
[1721686794536,0.60362582,3451.1,3450.2,2.512]
[1721686794732,0.60362582,3451.1,3450.5,0.55]
[1721686794915,0.60362582,3451.0,3450.5,0.55]
[1721686795116,0.60362582,3451.1,3450.4,2.89821]
[1721686795323,0.60362582,3451.1,3450.5,0.55]
[1721686795532,2.91462582,3451.2,3450.5,0.55]
[1721686795743,3.3540088,3451.2,3450.5,0.55]
[1721686796218,2.311,3451.2,3450.6,2.512]
[1721686796617,0.60362582,3451.3,3450.7,0.55]
[1721686797629,0.60362582,3451.4,3450.7,0.55]
[1721686797828,0.60362582,3451.4,3450.7,3.44796]
[1721686798763,0.60362582,3451.3,3450.7,0.55]
[1721686799445,0.60362582,3451.3,3450.6,2.512]
[1721686800379,0.60362582,3451.3,3450.2,2.512]
[1721686800523,0.60362582,3451.0,3450.0,7.35]
[1721686800868,1.1605205,3450.9,3450.1,5.89845]
[1721686801159,0.60362582,3451.0,3450.2,2.89833]
[1721686801390,0.60362582,3451.0,3450.2,5.41032]
[1721686801573,2.30362582,3451.1,3450.2,5.41032]
[1721686801722,0.60362582,3451.0,3450.2,4.377886]
[1721686801928,0.60362582,3451.1,3450.6,2.89799]
[1721686802248,0.60362582,3451.3,3450.7,0.55]
[1721686802561,0.60362582,3451.4,3450.7,3.44795]
[1721686802760,0.60362582,3451.4,3450.8,2.89786]
[1721686802920,0.60362582,3451.4,3450.7,0.55]
[1721686803430,0.60362582,3451.6,3450.8,2.89782]
[1721686803630,0.35,3451.6,3451.0,2.512]
[1721686803925,3.03622582,3451.7,3451.0,2.512]
[1721686804673,2.4326,3451.7,3451.1,0.55]
[1721686805764,2.4326,3451.7,3451.1,3.44761]
[1721686806360,0.35,3451.8,3451.1,3.44761]
[1721686806755,3.78362582,3451.9,3451.1,3.44761]
[1721686806945,3.78362582,3451.9,3451.1,4.778511]
[1721686807647,3.18,3451.9,3451.3,2.8974]
[1721686807836,3.18,3451.9,3451.4,2.89736]
[1721686807837,2.83,3451.9,3451.4,2.89736]
[1721686808188,2.83,3451.9,3451.1,4.778541]
[1721686808341,2.83,3451.9,3451.3,2.89743]
[1721686808675,2.83,3451.9,3451.4,1.0278391]
[1721686809808,2.83,3451.9,3451.4,3.9251791]
[1721686810147,2.83,3451.9,3451.5,2.89727]
[1721686810408,0.60362582,3452.4,3451.4,6.4371791]
[1721686810409,0.60362582,3452.4,3451.8,2.89703]
[1721686810552,1.20266553,3452.8,3452.0,2.89681]
[1721686810553,0.60362582,3452.7,3452.0,2.89681]
[1721686810754,0.90532099,3452.8,3451.8,2.512]
[1721686810755,0.60362582,3452.8,3451.8,2.512]
[1721686810988,2.4326,3452.9,3451.8,2.512]
[1721686810989,3.03622582,3452.9,3452.1,2.89678]
[1721686811194,2.4326,3452.9,3451.8,2.512]
[1721686811377,2.4326,3452.9,3451.9,0.55]
[1721686811378,0.35,3452.7,3451.9,0.55]
[1721686811552,0.35,3452.7,3451.9,3.44695]
[1721686811757,0.35,3452.7,3451.9,0.55]
[1721686811996,0.35,3452.7,3451.9,4.777861]
[1721686812299,0.35,3452.7,3451.9,1.880911]
[1721686812655,2.4326,3452.9,3451.9,1.880911]
[1721686812853,0.35,3452.8,3451.9,1.880911]
[1721686813456,0.95362582,3452.8,3451.9,1.880911]
[1721686813994,2.4567,3452.7,3451.7,7.35]
[1721686814203,2.4567,3452.3,3451.7,7.35]
[1721686814690,0.35,3452.0,3451.7,7.35]
[1721686814862,0.60362582,3452.2,3451.3,15.13743]
[1721686815064,3.06032582,3452.3,3451.3,12.24]
[1721686815279,0.90532099,3452.5,3451.3,12.24]
[1721686815280,0.35,3452.2,3451.5,2.89724]
[1721686815477,0.35,3452.4,3451.4,4.9663]
[1721686815683,0.35,3452.4,3451.3,14.52168376]
[1721686815684,2.4567,3452.3,3451.3,14.52168376]
[1721686815897,3.06032582,3452.3,3451.4,0.55]
[1721686816272,0.60362582,3452.2,3451.4,0.55]
[1721686816666,3.06032582,3452.3,3451.4,0.55]
[1721686817099,0.35,3452.2,3451.4,5.97926938]
[1721686817390,3.06032582,3452.3,3451.4,3.08191938]
[1721686817696,0.60362582,3452.2,3451.4,3.08191938]
[1721686817899,3.06032582,3452.3,3451.4,5.97928938]
[1721686818072,3.06032582,3452.3,3451.6,2.89717]
[1721686818258,2.8067,3452.3,3451.6,2.89717]
[1721686818597,2.4567,3452.3,3451.7,0.55]
[1721686819096,0.60362582,3452.5,3451.9,2.89694]
[1721686819261,0.60362582,3452.7,3452.0,3.791504]
[1721686819462,2.87732582,3452.8,3452.1,2.89677]
[1721686819702,2.87732582,3452.8,3452.2,0.55]
[1721686819899,2.2737,3452.8,3452.2,0.55]
[1721686820223,2.2737,3452.8,3452.2,3.44665]
[1721686820367,0.60362582,3452.9,3452.2,4.1154694]
[1721686820566,0.60362582,3452.8,3452.2,6.6274694]
[1721686820789,0.60362582,3452.9,3452.2,6.6274694]
[1721686821308,0.95362582,3453.0,3452.2,6.6274694]
[1721686821528,0.95362582,3453.0,3452.2,3.7308194]
[1721686822200,0.60362582,3452.9,3452.2,3.7308194]
[1721686822401,0.60362582,3452.9,3452.2,6.6275194]
[1721686822604,0.35,3452.9,3452.2,1.2188194]
[1721686822917,0.35,3452.9,3451.7,10.2471]
[1721686822918,2.2737,3452.6,3451.7,7.35]
[1721686823122,0.60362582,3452.5,3451.7,7.35]
[1721686823277,0.60362582,3452.1,3451.7,7.35]
[1721686823640,0.60362582,3452.1,3451.0,7.35]
[1721686823641,3.17902099,3451.9,3451.0,7.35]
[1721686823942,0.35,3451.4,3451.0,7.35]
[1721686824141,0.60094972,3451.3,3451.0,7.35]
[1721686824736,0.95094972,3451.4,3451.0,7.35]
[1721686825447,0.35,3451.4,3451.0,7.35]
[1721686825643,0.95094972,3451.4,3451.0,7.35]
[1721686826008,0.60094972,3451.3,3451.0,7.35]
[1721686826214,0.60094972,3451.2,3451.0,7.35]
[1721686826407,0.60094972,3451.3,3450.4,7.35]
[1721686826739,0.60094972,3451.2,3450.5,0.55]
[1721686826893,0.95094972,3451.3,3450.5,0.55]
[1721686827092,0.95094972,3451.3,3450.6,2.89804]
[1721686827328,0.60094972,3451.3,3450.7,0.55]
[1721686827520,0.90532099,3451.5,3450.7,0.55]
[1721686827521,0.60094972,3451.5,3450.7,3.44795]
[1721686827819,1.20266553,3451.8,3450.8,0.885799]
[1721686827820,0.60094972,3451.4,3450.8,0.885799]
[1721686827998,0.60094972,3451.5,3450.9,0.55]
[1721686828429,0.60094972,3451.4,3450.9,0.55]
[1721686828631,0.60094972,3451.4,3450.6,2.512]
[1721686828632,0.60094972,3451.4,3450.6,5.41002]
[1721686828795,0.60094972,3451.4,3450.7,0.55]
[1721686829005,0.60094972,3451.4,3450.7,2.07738248]
[1721686829338,0.60094972,3451.4,3450.7,4.97528248]
[1721686829557,0.60094972,3451.4,3450.7,2.07738248]
[1721686829844,0.60094972,3451.3,3450.7,2.07738248]
[1721686830145,0.60094972,3451.3,3450.7,4.97533248]
[1721686830317,0.60094972,3451.4,3450.8,0.74873325]
[1721686830652,0.60094972,3451.5,3451.1,2.89762]
[1721686830958,0.60094972,3451.5,3450.9,0.55]
[1721686831136,0.60094972,3451.4,3450.9,0.55]
[1721686831751,0.60094972,3451.5,3450.9,0.55]
[1721686832041,0.60094972,3451.5,3451.2,2.89748]
[1721686832244,0.60094972,3451.5,3451.4,2.89737]
[1721686832452,0.60094972,3451.7,3451.4,3.44737]
[1721686832635,0.60094972,3451.8,3451.5,2.89728]
[1721686832944,0.60094972,3451.8,3451.4,2.8973]
[1721686833151,0.60094972,3451.8,3451.4,3.18703]
[1721686833708,0.60094972,3451.8,3451.4,3.1871]
[1721686833910,0.60094972,3451.8,3451.5,2.89722]
[1721686834525,0.60094972,3451.8,3451.6,0.55]
[1721686834915,0.60094972,3451.8,3451.5,3.44726]
[1721686835619,0.60094972,3451.8,3451.6,2.8972]
[1721686835809,0.60094972,3451.8,3451.7,0.55]
[1721686836231,0.60094972,3451.8,3451.6,0.55]
[1721686836445,0.60094972,3451.9,3451.7,2.89712]
[1721686836647,0.60094972,3452.0,3451.8,0.7007781]
[1721686837439,0.60094972,3452.1,3451.8,0.7007781]
[1721686837833,0.60094972,3452.1,3452.0,2.89687]
[1721686838047,0.60094972,3452.5,3452.2,2.89667]
[1721686838265,0.60094972,3452.5,3452.4,5.40853]
[1721686838559,0.60094972,3452.6,3452.0,5.9588]
[1721686838759,0.60094972,3452.6,3452.4,0.55]
[1721686839076,0.60094972,3452.7,3452.5,2.89645]
[1721686839275,0.60094972,3452.7,3452.5,0.55]
[1721686839977,0.60094972,3452.7,3452.3,0.55]
[1721686840178,0.60094972,3452.7,3452.2,0.55]
[1721686840387,0.60094972,3452.6,3452.2,0.55]
[1721686840585,0.60094972,3452.6,3452.2,1.85475678]
[1721686840877,0.60094972,3452.7,3452.2,1.85475678]
[1721686841049,0.60094972,3452.6,3452.2,1.85475678]
[1721686841444,0.60094972,3452.6,3452.2,0.55]
[1721686841644,0.60094972,3452.5,3452.2,0.55]
[1721686842048,0.60094972,3452.4,3452.2,0.55]
[1721686842253,0.60094972,3452.6,3452.2,0.55]
[1721686843149,0.60094972,3452.4,3452.1,3.0]
[1721686843351,0.60094972,3452.5,3452.1,3.0]
[1721686843854,0.60094972,3452.4,3452.2,0.55]
[1721686844076,0.60094972,3452.5,3452.2,0.55]
[1721686844246,0.90532099,3452.6,3452.2,0.55]
[1721686844247,0.60094972,3452.6,3452.2,0.55]
[1721686844453,0.60094972,3452.7,3452.2,3.44663]
[1721686844637,0.90532099,3452.8,3452.2,3.44663]
[1721686844638,0.60094972,3452.6,3452.2,3.44663]
[1721686844848,0.60094972,3452.6,3452.3,0.95799078]
[1721686845091,0.60094972,3452.6,3452.4,0.55]
[1721686845593,0.60094972,3452.6,3452.3,0.95799078]
[1721686845594,0.60094972,3452.5,3452.3,0.95799078]
[1721686845754,0.60094972,3452.7,3452.3,0.95799078]
[1721686846147,0.60094972,3452.7,3452.4,0.55]
[1721686846367,0.60094972,3452.8,3452.5,0.44046008]
[1721686846579,0.60094972,3452.8,3452.7,2.89628]
[1721686846785,0.60094972,3453.1,3452.9,2.89606]
[1721686846959,0.60094972,3453.3,3453.0,2.512]
[1721686847155,0.60094972,3453.3,3453.1,0.55]
[1721686847382,0.60094972,3453.4,3453.1,0.55]
[1721686848284,0.60094972,3453.5,3453.1,0.55]
[1721686848487,0.60094972,3453.4,3452.9,3.44608]
[1721686848791,0.60094972,3453.5,3453.1,2.89588]
[1721686849098,0.60094972,3453.5,3453.0,3.156608]
[1721686849099,0.60094972,3453.6,3453.2,0.55]
[1721686849289,0.60094972,3453.7,3453.2,3.44586]
[1721686849585,0.60094972,3453.6,3453.2,0.55]
[1721686850084,0.60094972,3453.6,3452.7,3.0]
[1721686850085,0.60094972,3453.4,3452.7,3.0]
[1721686850414,0.60094972,3453.0,3452.3,3.85459078]
[1721686850598,0.60094972,3453.0,3452.2,5.40864]
[1721686850599,0.60094972,3453.0,3452.2,2.512]
[1721686850809,0.90532099,3453.2,3452.2,2.512]
[1721686850810,0.60094972,3452.8,3452.2,2.512]
[1721686851105,0.60094972,3452.7,3451.9,2.278]
[1721686851313,0.60094972,3452.9,3452.5,2.89644]
[1721686851618,0.60094972,3453.0,3452.5,2.89639]
[1721686851763,0.60094972,3453.0,3452.3,2.89655]
[1721686851964,0.60094972,3452.9,3452.3,3.72708]
[1721686852164,0.60094972,3452.9,3452.4,0.55]
[1721686852410,0.60094972,3453.0,3452.4,0.55]
[1721686852572,0.60094972,3453.0,3452.4,3.44653]
[1721686854305,0.60094972,3453.1,3452.5,2.8964]
[1721686854601,0.60094972,3453.0,3452.6,0.55]
[1721686854806,0.60094972,3453.0,3452.5,3.44644]
[1721686855100,0.60094972,3453.1,3452.5,4.02736426]
[1721686856010,0.60094972,3452.9,3452.5,4.02736426]
[1721686856166,0.60094972,3453.0,3452.5,1.13092426]
[1721686856499,0.60094972,3453.0,3452.5,0.55]
[1721686856500,0.60094972,3452.9,3452.5,0.55]
[1721686856685,0.90532099,3453.0,3452.4,0.55]
[1721686856686,0.60094972,3453.0,3452.4,0.55]
[1721686857193,0.60094972,3453.0,3452.3,0.55]
[1721686857509,0.60094972,3453.0,3452.3,3.4466]
[1721686858516,0.90532099,3453.1,3452.3,3.4466]
[1721686858517,0.60094972,3452.9,3452.3,3.4466]
[1721686858683,0.60094972,3452.9,3452.3,1.39687165]
[1721686859418,0.60094972,3453.0,3452.3,1.39687165]
[1721686859609,3.05934972,3452.9,3452.3,0.55]
[1721686859805,0.60094972,3452.7,3452.3,0.55]
[1721686860009,0.60094972,3452.8,3452.3,0.55]
[1721686860736,0.60094972,3452.9,3452.3,0.55]
[1721686861037,0.60094972,3452.9,3452.8,5.7924]
[1721686861247,1.80403644,3453.7,3452.8,5.7924]
[1721686861248,0.60094972,3453.6,3453.1,2.89592]
[1721686861537,0.60094972,3453.7,3453.2,2.89586]
[1721686861824,0.60094972,3453.7,3453.2,3.44586]
[1721686862021,0.60094972,3453.7,3453.2,1.145786]
[1721686863231,0.60094972,3453.6,3452.7,7.35]
[1721686863433,0.90532099,3453.8,3452.7,7.35]
[1721686863434,0.60094972,3453.3,3452.7,7.35]
[1721686863633,2.98184972,3453.3,3452.7,7.35]
[1721686863926,0.60094972,3453.2,3452.7,7.35]
[1721686864122,0.60094972,3453.1,3452.7,7.35]
[1721686864812,0.60094972,3453.2,3452.7,7.35]
[1721686864980,0.60094972,3453.3,3452.7,11.53248]
[1721686865181,0.90532099,3453.4,3452.7,8.6362]
[1721686865182,0.60094972,3453.4,3452.7,8.6362]
[1721686865382,0.60094972,3453.5,3453.0,2.89603]
[1721686865584,0.60094972,3453.5,3452.9,5.40808]
[1721686865828,0.60094972,3453.6,3452.9,2.512]
[1721686866138,0.60094972,3453.7,3453.1,2.89594]
[1721686866420,0.60094972,3453.8,3453.3,5.40772]
[1721686866582,0.60094972,3453.8,3453.4,0.55]
[1721686866786,0.60094972,3453.9,3453.5,0.595772]
[1721686867131,0.60094972,3453.9,3453.4,0.55]
[1721686867339,0.60094972,3453.8,3453.4,0.55]
[1721686867619,0.60094972,3453.8,3453.1,0.55]
[1721686867785,0.60094972,3453.8,3453.0,5.89597]
[1721686867786,0.60094972,3453.8,3453.0,3.0]
[1721686867983,0.60094972,3453.7,3453.0,3.0]
[1721686868221,0.60094972,3453.7,3453.0,4.8448893]
[1721686869007,0.60094972,3453.6,3453.0,1.8448893]
[1721686869206,0.60094972,3453.7,3453.0,1.8448893]
[1721686869408,2.3448,3453.5,3453.0,1.8448893]
[1721686869620,2.3448,3453.5,3452.8,3.0]
[1721686870201,2.94574972,3453.5,3452.8,3.0]
[1721686870596,0.60094972,3453.4,3452.8,3.0]
[1721686871193,0.60094972,3453.4,3452.7,8.6362]
[1721686871533,0.60094972,3453.4,3452.7,7.35]
[1721686871534,0.60094972,3453.0,3452.7,7.35]
[1721686871827,0.60094972,3452.9,3452.7,7.35]
[1721686872034,0.60094972,3452.9,3452.2,2.89669]
[1721686872325,0.60094972,3452.9,3452.3,2.89657]
[1721686872900,0.90532099,3453.1,3452.1,7.35]
[1721686872901,0.60094972,3453.0,3452.4,2.89653]
[1721686873100,0.60094972,3453.0,3452.5,3.186053]
[1721686873303,1.20266553,3453.3,3452.7,2.8962]
[1721686873304,0.60094972,3453.1,3452.7,2.8962]
[1721686873535,0.60094972,3453.3,3452.8,3.44619]
[1721686873845,0.60094972,3453.3,3452.5,0.289653]
[1721686874040,0.60094972,3453.1,3452.6,2.89631]
[1721686874240,0.90532099,3453.3,3452.6,0.55]
[1721686874241,0.60094972,3453.0,3452.6,0.55]
[1721686874406,0.60094972,3453.1,3452.5,3.55]
[1721686874610,0.90532099,3453.2,3452.5,3.55]
[1721686874611,0.60094972,3453.0,3452.5,3.0]
[1721686874804,0.60094972,3453.0,3452.2,2.512]
[1721686874805,0.60094972,3452.9,3452.3,3.0]
[1721686875132,0.60094972,3452.8,3452.4,1.575871]
[1721686875730,0.60094972,3452.7,3452.2,2.512]
[1721686875941,0.60094972,3452.6,3452.2,2.512]
[1721686876249,0.60094972,3452.5,3452.1,7.35]
[1721686876400,0.60094972,3452.3,3452.2,3.0]
[1721686876744,0.60094972,3452.3,3451.6,7.35]
[1721686876905,0.60094972,3452.0,3451.4,2.512]
[1721686877251,0.60094972,3452.0,3451.5,2.49994]
[1721686877252,0.60094972,3451.9,3451.5,2.49994]
[1721686877542,0.60094972,3451.8,3451.5,2.49994]
[1721686877764,0.60094972,3451.9,3451.5,2.49994]
[1721686878049,0.90532099,3452.0,3451.5,2.49994]
[1721686878050,0.60094972,3451.8,3451.5,2.49994]
[1721686878218,0.60094972,3451.7,3451.3,7.35]
[1721686878753,0.60094972,3451.4,3450.9,2.4816]
[1721686878908,0.60246783,3451.4,3450.9,5.37937]
[1721686879102,0.60246783,3451.4,3451.1,2.89761]
[1721686879320,0.60246783,3451.5,3451.2,1.078898]
[1721686879705,0.60246783,3451.6,3451.2,1.078898]
[1721686880108,0.60246783,3451.5,3451.2,1.078898]
[1721686880343,0.60246783,3451.5,3451.2,2.89753]
[1721686880513,0.60246783,3451.6,3451.1,2.89759]
[1721686880719,0.60246783,3451.6,3451.1,2.89762]
[1721686881114,0.60246783,3451.6,3451.2,0.55]
[1721686881319,0.60246783,3451.6,3451.2,3.44753]
[1721686881516,0.60246783,3451.6,3451.2,1.683877]
[1721686881733,0.90532099,3451.7,3451.1,3.0]
[1721686881734,0.60246783,3451.3,3451.1,3.0]
[1721686882040,0.60246783,3451.4,3451.1,3.0]
[1721686882665,0.60246783,3451.3,3451.1,3.0]
[1721686883545,0.60246783,3451.4,3450.9,3.0]
[1721686883749,0.60246783,3451.3,3450.5,19.59]
[1721686883902,0.60246783,3451.1,3450.6,0.55]
[1721686884416,0.60246783,3451.0,3450.6,0.55]
[1721686884738,0.60246783,3451.0,3450.5,21.3671705]
[1721686884908,0.60246783,3451.0,3450.5,19.59]
[1721686885256,0.60246783,3450.9,3450.6,3.0]
[1721686886244,0.60246783,3451.0,3450.6,3.0]
[1721686886742,0.60246783,3451.0,3450.5,19.59]
[1721686886944,0.60246783,3450.8,3450.1,7.35]
[1721686887143,0.60246783,3450.9,3450.1,0.81476538]
[1721686887353,2.60532099,3451.0,3450.1,0.81476538]
[1721686887354,0.60246783,3450.8,3450.1,0.81476538]
[1721686888433,0.95246783,3451.0,3450.1,0.81476538]
[1721686888749,0.95246783,3451.0,3450.6,2.512]
[1721686889046,0.60246783,3451.5,3450.6,2.512]
[1721686889358,0.60246783,3451.5,3450.7,0.55]
[1721686889658,0.95246783,3451.5,3450.7,0.55]
[1721686889812,2.3835,3451.8,3450.6,0.789878]
[1721686889813,0.60246783,3451.6,3450.6,0.789878]
[1721686890006,0.35,3451.4,3450.6,0.789878]
[1721686890221,0.60246783,3451.6,3450.7,1.4038088]
[1721686890460,2.98596783,3451.8,3450.8,0.55]
[1721686890903,2.98596783,3451.8,3450.8,3.44786]
[1721686891109,3.33596783,3451.8,3450.9,5.89778]
[1721686891423,0.35,3451.8,3451.0,5.46762671]
[1721686891610,0.35,3451.8,3451.1,0.89154667]
[1721686891944,0.35,3451.8,3451.1,3.84709875]
[1721686892444,0.35,3451.8,3451.1,3.84710185]
[1721686892746,0.35,3451.8,3451.1,0.94949185]
[1721686893061,0.35,3451.8,3451.1,3.84710185]
[1721686893211,0.35,3451.8,3451.2,0.63591018]
[1721686893409,0.35,3451.8,3451.2,3.53344018]
[1721686893606,0.35,3451.8,3451.2,3.53340018]
[1721686894023,0.35,3451.8,3451.3,2.89745]
[1721686894222,0.35,3451.8,3451.2,0.63591018]
[1721686894440,0.35,3451.8,3451.3,0.9892632]
[1721686894775,0.35,3451.8,3451.4,3.062]
[1721686894909,0.60246783,3452.4,3451.5,5.89728]
[1721686895264,0.60246783,3452.3,3451.5,3.0]
[1721686895551,0.35,3452.2,3451.4,3.0]
[1721686895853,0.60246783,3452.4,3451.5,3.64954134]
[1721686896210,0.35,3452.3,3451.5,3.64954134]
[1721686896412,0.35,3452.3,3451.5,6.54675134]
[1721686896608,0.35,3452.3,3451.5,3.64947134]
[1721686898061,0.35,3452.3,3451.5,0.75226134]
[1721686898365,0.90532099,3452.6,3451.6,1.37182543]
[1721686898366,0.60246783,3452.6,3451.6,1.37182543]
[1721686898544,0.35,3452.5,3452.1,2.89673]
[1721686898852,2.3651,3452.7,3452.2,0.55]
[1721686899209,2.3651,3452.7,3452.1,0.55]
[1721686899408,2.3651,3452.7,3452.2,2.89668]
[1721686900024,2.3651,3452.7,3452.1,1.145885]
[1721686900560,0.60246783,3453.0,3452.1,4.145885]
[1721686900727,0.60246783,3452.9,3452.1,3.595885]
[1721686900914,0.60246783,3452.8,3452.1,0.595885]
[1721686901250,0.60246783,3452.7,3451.8,5.89698]
[1721686901460,0.60246783,3452.7,3451.9,0.55]
[1721686901624,0.60246783,3452.5,3451.4,2.89735]
[1721686901807,0.95246783,3452.4,3451.5,3.55]
[1721686902011,0.60246783,3452.3,3451.5,3.55]
[1721686902248,0.60246783,3452.3,3451.5,8.46689132]
[1721686902458,0.60246783,3452.4,3451.5,5.56961132]
[1721686902614,0.95246783,3452.4,3451.5,5.56961132]
[1721686902813,0.60246783,3452.3,3451.5,3.0]
[1721686903020,2.4578,3452.2,3451.3,3.0]
[1721686903421,3.06026783,3452.2,3451.3,3.0]
[1721686903725,0.60246783,3452.1,3451.3,3.0]
[1721686904034,3.06026783,3452.2,3451.3,3.0]
[1721686904227,3.41026783,3452.2,3451.3,5.548767]
[1721686904544,3.41026783,3452.2,3451.5,2.89727]
[1721686904545,2.8078,3452.2,3451.5,2.89727]
[1721686905053,2.8078,3452.2,3451.6,2.89715]
[1721686905054,2.4578,3452.2,3451.6,2.89715]
[1721686905253,2.4578,3452.2,3451.4,3.062]
[1721686905464,0.60246783,3452.4,3451.5,5.89724]
[1721686905756,0.95246783,3452.4,3451.6,2.2905437]
[1721686906066,0.60246783,3452.4,3451.6,2.2905437]
[1721686906223,0.60246783,3452.3,3451.5,3.0]
[1721686906418,0.60246783,3452.1,3451.4,3.0]
[1721686906614,2.4578,3452.0,3451.3,3.0]
[1721686906867,2.4578,3452.0,3451.4,0.55]
[1721686908161,3.06026783,3452.0,3451.3,3.0]
[1721686909052,2.85435888,3452.0,3451.3,3.0]
[1721686909418,0.60246783,3451.9,3451.3,3.0]
[1721686909744,0.60246783,3451.9,3451.2,7.35]
[1721686909745,0.60246783,3451.8,3451.2,7.35]
[1721686909919,0.60246783,3451.7,3451.2,7.35]
[1721686910319,0.60246783,3451.4,3450.7,7.35]
[1721686910537,0.60246783,3451.1,3450.7,7.35]
[1721686910738,0.35,3451.4,3450.2,7.35]
[1721686910739,0.60246783,3451.0,3450.2,7.35]
[1721686910983,0.60246783,3451.0,3450.3,0.9862]
[1721686911583,0.60246783,3451.0,3450.6,2.89796]
[1721686911876,0.60246783,3451.0,3450.9,2.89779]
[1721686912437,0.60246783,3451.0,3450.9,6.44779]
[1721686912876,0.60246783,3451.0,3450.9,3.55]
[1721686913053,0.60246783,3451.0,3450.8,3.0]
[1721686913255,0.60246783,3451.0,3450.8,0.589804]
[1721686913779,2.3486,3451.5,3450.8,0.589804]
[1721686913975,2.6986,3451.5,3450.8,0.589804]
[1721686914674,2.6986,3451.5,3450.5,3.0]
[1721686915064,2.6986,3451.5,3450.4,3.0]
[1721686915456,2.6986,3451.5,3450.4,5.89816]
[1721686916379,2.6986,3451.5,3450.4,3.0]
[1721686916581,2.6986,3451.5,3450.3,3.9862]
[1721686916901,2.3426,3451.3,3450.3,3.0]
[1721686917043,1.7,3451.1,3450.3,3.0]
[1721686917244,2.3426,3451.0,3450.2,7.35]
[1721686917444,1.7,3450.7,3450.2,7.35]
[1721686917977,0.35,3450.6,3450.2,7.35]
[1721686920086,2.3426,3451.0,3450.2,7.35]
[1721686920386,0.35,3450.7,3450.2,7.35]
[1721686920598,0.60195438,3450.4,3450.2,7.35]
[1721686920897,0.60195438,3450.4,3449.8,2.89864]
[1721686921106,0.60195438,3450.3,3449.9,0.55]
[1721686921259,0.60195438,3450.2,3449.9,0.55]
[1721686921459,0.60195438,3450.2,3449.8,3.55]
[1721686921661,0.60195438,3450.3,3450.0,2.89853]
[1721686921863,0.60195438,3450.4,3450.0,2.89853]
[1721686922404,0.60195438,3450.3,3449.6,7.35]
[1721686922575,0.60195438,3450.1,3449.7,0.55]
[1721686922777,0.60195438,3450.1,3449.7,3.44874]
[1721686923380,0.60195438,3450.2,3449.7,3.44874]
[1721686923705,0.60195438,3450.1,3449.7,0.55]
[1721686923863,0.60195438,3450.1,3449.6,7.35]
[1721686923864,0.60195438,3449.9,3449.6,7.35]
[1721686924066,0.60195438,3449.9,3449.3,15.24]
[1721686924067,0.60195438,3449.8,3449.3,3.0]
[1721686924365,0.60195438,3449.9,3448.9,7.35]
[1721686924583,0.60195438,3449.8,3449.0,2.89933]
[1721686924796,1.7,3450.1,3449.4,2.89903]
[1721686924797,0.60195438,3449.9,3449.4,2.89903]
[1721686925107,0.60195438,3450.5,3450.0,2.89849]
[1721686925256,0.90293157,3450.7,3449.7,5.41072]
[1721686925257,0.60195438,3450.6,3449.7,5.41072]
[1721686925606,0.60195438,3450.6,3450.0,2.8985]
[1721686925759,0.60195438,3450.6,3450.1,0.55]
[1721686926992,1.20390876,3451.0,3450.4,2.89813]
[1721686926993,0.60195438,3450.9,3450.4,2.89813]
[1721686927174,0.60195438,3451.0,3450.5,0.55]
[1721686927482,0.60195438,3450.9,3450.5,0.55]
[1721686927684,0.60195438,3451.0,3450.5,0.55]
[1721686927886,0.60195438,3451.0,3450.6,0.344813]